Cogmind - Beta 15 @@@ ROGUE MODE // 2025.05.12 @ 10:04:11 Player: Oliviana Result: Destroyed by Y-54 Guardian with Gatling Laser Performance ------------- Evolutions (0) 0 Regions Visited (3) 600 Robots Destroyed (9) 45 Value Destroyed (178) 178 Prototype IDs (0) 0 Alien Tech Used (0) 0 Bonus (0) 0 TOTAL SCORE: 823 Bonus ------- None Cogmind --------- Core Integrity 0/250 Matter 300/300 Energy 100/100 System Corruption 0% Temperature Cool (12) Movement Core (150) Ox2 Location -7/Recycling Parts ------- > --- POWER (1) -------- (None) > --- PROPULSION (2) --- (None) > --- UTILITY (2) ------ Small Storage Unit Seismic Detector > --- WEAPON (2) ------- Medium Laser > --- INVENTORY (8) ---- Light Ion Engine Light Treads Light Treads Wheel Compact Wheel Peak State ------------ > --- POWER ------------ Ion Engine > --- PROPULSION ------- Aluminum Leg Aluminum Leg > --- UTILITY ---------- Small Storage Unit Seismic Detector > --- WEAPON ----------- EM Pulse Gun Assault Rifle > --- INVENTORY -------- Light Ion Engine Light Treads Light Treads Wheel Compact Wheel Medium Laser [Rating: 7] Favorites ----------- Power Ion Engine Engine Ion Engine Propulsion Aluminum Leg Leg Aluminum Leg Utility Small Storage Unit Device Seismic Detector Storage Small Storage Unit Weapon Assault Rifle Energy Gun Medium Laser Energy Cannon Beam Cannon Ballistic Gun Assault Rifle Build | -11 -10 -10 -7 ------- Run | Yrd Mat Sub Rec Slots Evolved . | . . . . Power . | . . . . Propulsion . | . . . . Utility . | . . . . Weapon . | . . . . Parts Attached 3 | 1 1 . 1 Power . | . . . . Engine . | . . . . Core . | . . . . Reactor . | . . . . Propulsion . | . . . . Treads . | . . . . Leg . | . . . . Wheel . | . . . . Hover . | . . . . Flight . | . . . . Utility 1 | 1 . . . Device 1 | 1 . . . Storage . | . . . . Processor . | . . . . Hackware . | . . . . Protection . | . . . . Artifact . | . . . . Weapon 2 | . 1 . 1 Energy Gun 1 | . . . 1 Energy Cannon 1 | . 1 . . Ballistic Gun . | . . . . Ballistic Cannon . | . . . . Launcher . | . . . . Special Weapon . | . . . . Impact Weapon . | . . . . Slashing Weapon . | . . . . Piercing Weapon . | . . . . Special Melee Weapon . | . . . . Unidentified Prototypes . | . . . . Parts Lost 5 | . . 1 4 Power 1 | . . . 1 Propulsion 2 | . . 1 1 Utility . | . . . . Weapon 2 | . . . 2 Highest Loss Streak 3 | . . 1 3 To Critical Strikes . | . . . . Average Backups 5 | 6 6 6 5 Power 1 | 1 1 1 1 Propulsion 4 | 4 4 4 4 Utility . | . . . . Weapon . | 1 1 1 . Tool/Special . | . . . . Unused Backups 16 | . 7 1 8 Power 3 | . 1 . 2 Propulsion 8 | . 2 1 5 Utility 1 | . 1 . . Weapon 4 | . 3 . 1 Tool/Special . | . . . . Average Slot Usage (%) 81 | . 100 100 60 Engine 14 | . 14 14 14 Leg 15 | . 28 28 2 Device 14 | . 14 14 14 Storage 14 | . 14 14 14 Energy Gun 6 | . 1 . 12 Energy Cannon 7 | . 12 14 1 Ballistic Gun 8 | . 14 14 1 Peak Build Rating 7 | 7 7 7 6 Average Rating 5 | 6 7 6 4 On Entrance 6 | 6 7 7 6 Naked Turns . | . . . . Heaviest Build 16 | 15 16 16 16 Greatest Support 20 | 20 20 20 10 Greatest Overweight (x) 4 | . . 1 4 Average Overweight (x) 1 | . . . 3 Largest Inventory Capacity 8 | 8 8 8 8 Average Capacity 8 | 8 8 8 8 Most Carried 6 | 6 6 6 6 Average Carried 5 | 6 6 6 5 Final Capacity 8 | 8 8 8 8 Final Carried 6 | 6 6 6 5 Class Distribution -------------------- 100% | Mutant Dominant Class ---------------- Mutant | -10/Materials Mutant | -10/Subcaves Mutant | -7/Recycling Resources | -11 -10 -10 -7 ----------- Run | Yrd Mat Sub Rec Matter Collected 267 | 200 59 . 8 Remotely . | . . . . Salvage Created 285 | 80 131 13 61 Parts 22 | 9 10 3 . Haulers Intercepted . | . . . . Recyclers Shooed . | . . . . Parts Field Recycled . | . . . . Retrieved Matter . | . . . . Parts Self-Destructed 3 | . . 3 . Prevented . | . . . . Kills | -11 -10 -10 -7 ------- Run | Yrd Mat Sub Rec Combat Hostiles Destroyed 5 | . 3 1 1 Guns 2 | . 1 1 . Cannons 2 | . 2 . . Classes Destroyed 6 | 2 3 . 1 Tunneler 2 | 1 1 . . Recycler 1 | 1 . . . Operator 1 | . 1 . . Swarmer 2 | . 1 1 . Grunt 2 | . 2 . . Sentry 1 | . . . 1 Best Kill Streak 2 | 2 2 1 1 Combat Bots Only 2 | . 2 1 1 Max Kills in Single Turn 1 | 1 1 1 1 Gunslinging . | . . . . Exploded . | . . . . Melee . | . . . . Uniques/NPCs Destroyed . | . . . . Combat | -11 -10 -10 -7 -------- Run | Yrd Mat Sub Rec Hostile Shots Fired 146 | . . 71 75 Missed 73 | . . 37 36 Hits 73 | . . 34 39 Projectile 73 | . . 34 39 AOE 7 | . . 7 . Damage Taken 806 | . 19 477 310 Core 253 | . 10 157 86 Absorbed by Shields . | . . . . Core Remaining (%) 100 | 100 . . . Volleys Fired 25 | 3 10 2 10 Largest 2 | 2 2 2 2 Hottest 80 | 60 80 80 80 Shots Fired 42 | 6 20 4 12 Gun 28 | 6 10 2 10 Cannon 14 | . 10 2 2 Launcher . | . . . . Special . | . . . . Kinetic 19 | 3 10 2 4 Thermal 20 | . 10 2 8 Explosive . | . . . . Electromagnetic 3 | 3 . . . Robot Hit Streak 6 | 1 4 1 6 Robot Miss Streak 3 | 2 2 3 1 Penetration Max . | . . . . Secondary Targets . | . . . . Shots Hit Robots 21 | 2 8 1 10 Core Hits 11 | 2 5 1 3 Critical Kills . | . . . . Critical Parts Destroyed . | . . . . Critical Strikes 1 | . . . 1 Burn 1 | . . . 1 Melee Attacks . | . . . . Impact . | . . . . Slashing . | . . . . Piercing . | . . . . Sneak Attacks . | . . . . Combat Hostiles . | . . . . Follow-up Attacks . | . . . . Damage Inflicted 300 | 28 128 10 134 Guns 165 | 28 32 10 95 Cannons 125 | . 89 . 36 Explosions . | . . . . Melee . | . . . . Ramming 10 | . 7 . 3 Kinetic 78 | 15 32 10 21 Thermal 199 | . 89 . 110 Explosive . | . . . . Electromagnetic 13 | 13 . . . Impact . | . . . . Slashing . | . . . . Piercing . | . . . . Highest Corruption . | . . . . Average Corruption . | . . . . Corruption Purged . | . . . . Corruption Blocked . | . . . . Overload Shots . | . . . . Overflow Damage . | . . . . Projectiles . | . . . . Explosions . | . . . . Melee . | . . . . Knockbacks . | . . . . Impact . | . . . . Kinetic . | . . . . Secondary . | . . . . Self-Inflicted Damage 1 | . . . 1 Shots . | . . . . Rammed 2 | . . . 2 Targets Rammed 3 | . 1 . 2 Kicked 1 | . 1 . . Crushed . | . . . . Highest Temperature 90 | . 42 . 90 Average Temperature 28 | . 19 . 41 Received Heat Transfer 216 | . 12 102 102 Siege Activations . | . . . . Martial Activations . | . . . . Shielding Activations . | . . . . Robots Disrupted . | . . . . Combat Hostiles . | . . . . Robots Corrupted . | . . . . Combat Hostiles . | . . . . Parts Fried . | . . . . Impact Corruptions . | . . . . Robots Melted 1 | . . . 1 Combat Hostiles 1 | . . . 1 Parts Melted 5 | . . . 5 Heat Transferred 555 | . 185 . 370 Parts Sabotaged . | . . . . Parts Stolen . | . . . . Parts Stripped . | . . . . Power Chain Reactions . | . . . . Alert | -11 -10 -10 -7 ------- Run | Yrd Mat Sub Rec Maximum Alert Level . | . . . . Low Security (%) 100 | 100 100 . 100 Level 1 . | . . . . Level 2 . | . . . . Level 3 . | . . . . Level 4 . | . . . . Level 5 . | . . . . High Security . | . . . . Max Security . | . . . . Peak Influence 50 | 10 50 . 43 Initial 43 | . 6 . 43 Average 8 | 8 13 . 4 Influence Increases 250 | 10 110 110 20 Destroy 0b10 Robot/C 100 | . 60 20 20 Destroy 0b10 Robot/NC 20 | 10 10 . . Destroy Leader 10 | . 10 . . Lose Combat Pursuer 120 | . 30 90 . Influence Decreases 250 | . 120 20 110 Entered New Map 51 | . 4 . 47 Time Decay 169 | . 116 10 43 Lost Part 30 | . . 10 20 Squads Dispatched 4 | . 4 . . Investigation 2 | . 2 . . Extermination . | . . . . Reinforcement 2 | . 2 . . Assault . | . . . . Garrison . | . . . . Intercept . | . . . . Searches Triggered . | . . . . Construction Impeded . | . . . . Haulers Reinforced . | . . . . Active Scanning Responses . | . . . . Cargo Convoy Interrupts . | . . . . Stealth | -11 -10 -10 -7 --------- Run | Yrd Mat Sub Rec Distress Signals 3 | . 3 . . Communications Jammed . | . . . . Distress Signals . | . . . . Times Spotted 24 | . 11 11 2 Peak Tracking Total 7 | . 4 7 1 Tactical Retreats 3 | . 1 2 . Traps | -11 -10 -10 -7 ------- Run | Yrd Mat Sub Rec Traps Triggered 1 | . 1 . . Indirectly . | . . . . Trap Hack Attempts . | . . . . Triggered . | . . . . Disarmed . | . . . . Reprogrammed . | . . . . Reused . | . . . . Traps Extracted . | . . . . Installed . | . . . . Triggered . | . . . . Machines | -11 -10 -10 -7 ---------- Run | Yrd Mat Sub Rec Machines Disabled . | . . . . Max in Single Turn . | . . . . Machines Repaired . | . . . . Machines Dismantled . | . . . . Machines Sabotaged . | . . . . Overloaded Fab Kills . | . . . . Hacking | -11 -10 -10 -7 --------- Run | Yrd Mat Sub Rec Machines Accessed 1 | . 1 . . Terminals 1 | . 1 . . Fabricators . | . . . . Repair Stations . | . . . . Recycling Units . | . . . . Scanalyzers . | . . . . Garrison Access . | . . . . Total Hacks 3 | . 3 . . Successful . | . . . . Failed 3 | . 3 . . Catastrophic 1 | . 1 . . Database Lockouts . | . . . . Manual . | . . . . Terminals 3 | . 3 . . Fabricators . | . . . . Repair Stations . | . . . . Recycling Units . | . . . . Scanalyzers . | . . . . Garrison Access . | . . . . Terminal Hacks . | . . . . Fabricator Hacks . | . . . . Repair Station Hacks . | . . . . Recycling Unit Hacks . | . . . . Scanalyzer . | . . . . Garrison Access Hacks . | . . . . Unauthorized Hacks . | . . . . Terminals . | . . . . Fabricators . | . . . . Repair Stations . | . . . . Recycling Units . | . . . . Scanalyzers . | . . . . Garrison Access . | . . . . Data Cores Recovered 1 | . 1 . . Used . | . . . . Hacking Detections 1 | . 1 . . Full Trace Events 1 | . 1 . . Feedback Events . | . . . . Feedback Blocked . | . . . . Robot Schematics Acquired . | . . . . Robots Built . | . . . . Authchips . | . . . . Time . | . . . . Total Robot Build Rating . | . . . . Part Schematics Acquired . | . . . . Parts Built . | . . . . Authchips . | . . . . Time . | . . . . Total Part Build Rating . | . . . . Parts Repaired . | . . . . Time . | . . . . Parts Recycled . | . . . . Recycled Matter . | . . . . Retrieved Matter . | . . . . Retrieved Components . | . . . . Parts Scanalyzed . | . . . . Part Schematics Acquired . | . . . . Parts Damaged . | . . . . Bothacking | -11 -10 -10 -7 ------------ Run | Yrd Mat Sub Rec Used RIF Installer . | . . . . Robots Hacked . | . . . . Non-combat . | . . . . Combat . | . . . . Robot Hacks Applied . | . . . . Relay Couplers Released . | . . . . Fabnet Peak Effective % . | . . . . Robots Rewired . | . . . . Allies Hacked . | . . . . Hacks Repelled . | . . . . Allies | -11 -10 -10 -7 -------- Run | Yrd Mat Sub Rec Total Allies . | . . . . Largest Group . | . . . . Highest-Rated Group . | . . . . Highest-Rated Ally . | . . . . Total Orders . | . . . . Ally Attacks . | . . . . Total Damage . | . . . . Kills . | . . . . Allies Corrupted . | . . . . Allies Melted . | . . . . Intel | -11 -10 -10 -7 ------- Run | Yrd Mat Sub Rec Active Infowar (turns) 819 | 5 384 110 320 Seismic 819 | 5 384 110 320 Robot Analysis Total . | . . . . Derelict Logs Recovered . | . . . . Drone Launches . | . . . . Drone Recoveries . | . . . . Exploration | -11 -10 -10 -7 ------------- Run | Yrd Mat Sub Rec Turns Passed 975 | 17 384 110 464 Spaces Moved 521 | 6 251 84 180 Core 158 | . . . 158 Treads . | . . . . Legs 363 | 6 251 84 22 Wheels . | . . . . Hover . | . . . . Flight . | . . . . Fastest Speed 120 | 120 120 120 150 Average Speed 162 | 120 120 120 242 Slowest Speed 250 | 120 120 190 250 Overloaded Moves . | . . . . Propulsion Burnouts . | . . . . Robots Hopped . | . . . . Potential Cave-ins . | . . . . Cave-ins Triggered . | . . . . Exploration Rate (%) 26 | 2 55 8 40 Regions Visited 3 Branch Regions 2 Pre-discovered Areas 1 | . . 1 . Known Exits Taken . | . . . . Unknown Exits Taken 3 | 1 1 1 . Scrap Searched . | . . . . Spaces Dug . | . . . . Terrain Destroyed . | . . . . Melee . | . . . . Projectile . | . . . . AOE . | . . . . Terrain Rammed . | . . . . Walls Destroyed . | . . . . Machines Disabled . | . . . . Actions | -11 -10 -10 -7 --------- Run | Yrd Mat Sub Rec Total 604 | 9 313 89 193 Wait 55 | . 51 4 . Move 518 | 5 250 83 180 Hop . | . . . . Pick Up . | . . . . Fast Attach 1 | 1 . . . Attach 1 | . . . 1 Detach . | . . . . Swap 1 | . 1 . . Drop . | . . . . Fire 25 | 3 10 2 10 Melee . | . . . . Ram 2 | . . . 2 Kick 1 | . 1 . . Crush . | . . . . Escape Stasis . | . . . . Rewire . | . . . . Trap . | . . . . Miscellaneous . | . . . . Route ------- -11/Scrapyard -10/Materials (discovered 3 exits: [*Mat x2] / [*Sub]) -10/Subcaves -7/Recycling History --------- Turn | Location | Event 11 | -11/Scrapyard | Discovered new exit (range 3) 18 | -11/Scrapyard | Entered Materials 19 | -10/Materials | Met a group of wandering Federalists 161 | -10/Materials | Discovered new exit (range 3) 260 | -10/Materials | Discovered new exit (range 15) 315 | -10/Materials | Build established: Mutant 400 | -10/Materials | Discovered new exit (range 3) 402 | -10/Materials | Entered Subcaves 403 | -10/Subcaves | Continued accompanying wandering Federalists (2) 403 | -10/Subcaves | Approached by a straggling Scientist 421 | -10/Subcaves | Learned location of Zion (-7) 421 | -10/Subcaves | Met a Zionite searching for "candidates" 436 | -10/Subcaves | A swath of the cavern ceiling suddenly collapsed 443 | -10/Subcaves | Shifting Twisted Machinery released Sub. Monowheel 445 | -10/Subcaves | Shifting Twisted Machinery released Spk. Treads 485 | -10/Subcaves | Discovered new exit (range 15) 510 | -10/Subcaves | Core integrity fell below 50% 512 | -10/Subcaves | Entered Recycling 568 | -7/Recycling | Core integrity fell below 20% 603 | -7/Recycling | Lost 3 parts (1n2w) 976 | -7/Recycling | Destroyed by Y-54 Guardian with Gatling Laser Last Messages --------------- 00540_ Y-54 Guardian springs to life. 00548_ Beam Cannon destroyed. 00564_ Assault Rifle destroyed. 00565_ Y-54 Guardian suffers critical hit (Burn). 00570_ Y-54 Guardian heat damages Lgt. Treads. 00572_ Aluminum Leg destroyed. 00574_ Y-54 Guardian heat spikes uncontrollably. 00575_ Y-54 Guardian heat damages Imp. Light Armor Plating. 00575_ Y-54 Guardian critical meltdown. 00575_ Lgt. Treads melted. 00575_ Gatling Laser melted. 00575_ Imp. Heat Sink melted. 00575_ Flak Gun melted. 00589_ U-05 Engineer builds a Door. 00682_ Acquired 8 matter. 00722_ Slammed into R-06 Scavenger. 00832_ Seismic Detector broken. 00832_ Destabilizing: Short circuit. 00973_ Y-54 Guardian springs to life. 00973_ Ion Engine destroyed. Map ----- +----------------------------------------------------+ | ??# """ """ ## #???? ????????????? | | ??# """ """ + +??? ????????????? | | ??# """ """ ## #######??? ???????????? | | ??# ###+##?????????? ???????????? | | ??###+########?? ??????????? ??????????? | | ????# #????????? ???????????""???????????? | | ????# #????????? ?????????????????????????? | | ????# ########## ?????????????????????? | | ????# + ?????????????????????? | | ??### #??????????????????????????? | | ??#"" " #??????????????????????????? | | ??#"" """ +??????????????????????????? | | ??#"T """ ####??????????????????????????? | | ??#"" """ #?????????????????????????????? | | ??#"" "" #?????????????????????????????? | | ??### """ #?????????????????????????????? | | ????# "" ####??????????????????????????? | | ????# """ +??????????????????????????? | | ????# " ##??????????????????????????? | | ????# ####+#??????????????????????? | | ????# #??????????????????????? | | ????# #??????????????????????? | | ????####### #??????????????????????? | | ?????????#Y #??????????????????????? | | ?????????## ########???????????????? | | ??????????# @ +????????????? | | ??????????#######"Y"#######???????????????? | | ????????????????#"""#?????????????????????? | | ????????????????#####?????????????????????? | | ??????????????????????????????????????????? | | | | | | | | | | | | | | | | | | | | | | | | | | | | | | | | | | | | | | | | | +----------------------------------------------------+ Best States ------------- Heat Dissipation 25 Energy Generation 10 Energy Capacity 250 Matter Stores 300 Matter Capacity 300 Sight Range 16 Terrain Scan Density 10 Evasion (%) 55 Item Schematics ----------------- None Robot Schematics ------------------ None Fabricated ------------ Nothing Repaired ---------- Nothing Alien Tech Used ----------------- None Achievements -------------- None Challenges ------------ None Game ------ Seed MetafiberSurgeAccelerator Manual? 0 Play Time 00:08:56 Cumulative 13.2 hours Start 2025.05.12 @ 09:53:22 End 2025.05.12 @ 10:04:11 Sessions 1 Manual Loads 0 Difficulty Rogue Special Mode None Game No. 16 Rogue 16 Adventurer 0 Explorer 0 Win Type - Total 0 Types 0/0/0/0/0/0/0/0/0/0 Lore% 2 Gallery% 13 Achievement% 13 Wizard Run 0 Options --------- Layout 0 ASCII 0 Keyboard 1 Movement Vi Keybinds 1 Fullscreen 1 Font 24/Tamsyn Map View 76x50 Zoom Use 0% Tactical HUD 1 Map Filters NONE Filters LOW_CONTRAST(13,24,33) Steam 1 RUN: 37371f72-4b77-436f-ae95-8575dda254cb